bitfinex/quotes_SOLUSD_20250924
["timestamp","ask_amount","ask_price","bid_price","bid_amount"]
[1758694876167,1.51875392,209.22,209.1,0.1]
[1758694876373,1.51875392,209.19,209.12,13.59559401]
[1758694876576,1.51875392,209.19,209.13,0.72]
[1758694877676,0.69,209.23,209.13,0.72]
[1758694877878,1.51875392,209.2,209.13,5.50149741]
[1758694878075,1.51875392,209.2,209.14,0.72]
[1758694878484,1.51875392,209.19,209.14,0.72]
[1758694878794,1.51875392,209.19,209.15,0.72]
[1758694878983,1.51875392,209.2,209.15,0.72]
[1758694879294,1.51875392,209.22,209.16,13.59559401]
[1758694879507,1.51875392,209.22,209.17,0.72]
[1758694879680,4.77920091,209.24,209.17,0.72]
[1758694879681,1.51875392,209.23,209.17,0.72]
[1758694879876,6.2982073,209.23,209.17,0.72]
[1758694880078,1.51875392,209.22,209.17,0.72]
[1758694880283,1.51875392,209.24,209.17,2.23875392]
[1758694880475,4.7791027,209.25,209.18,0.71]
[1758694880683,1.51875392,209.24,209.18,0.71]
[1758694880905,1.51875392,209.25,209.19,13.59559401]
[1758694881105,1.51875392,209.25,209.2,0.71]
[1758694881280,1.51875392,209.25,209.21,0.71]
[1758694881476,1.51875392,209.25,209.22,0.71]
[1758694881900,6.29786587,209.25,209.19,13.59559401]
[1758694882078,1.51875392,209.23,209.19,0.71]
[1758694882387,1.51875392,209.23,209.2,0.71]
[1758694882587,2.38081991,209.23,209.17,14.30559401]
[1758694882997,17.40654325,209.25,209.18,0.71]
[1758694883175,2.38081991,209.21,209.18,0.71]
[1758694883389,2.38081991,209.21,209.13,39.59559401]
[1758694883574,2.38081991,209.21,209.15,0.71]
[1758694883775,16.72880221,209.22,209.15,0.71]
[1758694883998,2.38081991,209.19,209.1,14.40559401]
[1758694884195,0.68,209.19,209.11,0.71]
[1758694884396,2.38081991,209.19,209.12,2.38081991]
[1758694884600,2.38081991,209.2,209.13,3.09081991]
[1758694884883,2.38081991,209.2,209.14,0.71]
[1758694885999,4.78034322,209.19,209.14,0.71]
[1758694886183,2.38081991,209.22,209.15,15.97641392]
[1758694886379,2.38081991,209.23,209.16,3.09081991]
[1758694886593,7.16002082,209.24,209.17,3.09081991]
[1758694886786,4.77920091,209.24,209.18,0.71]
[1758694886988,2.38081991,209.25,209.18,3.09081991]
[1758694887191,2.38081991,209.25,209.19,0.71]
[1758694888004,4.7790876,209.25,209.19,0.71]
[1758694888307,7.15990751,209.25,209.19,0.71]
[1758694889378,4.7790876,209.25,209.19,0.71]
[1758694889608,7.15990751,209.25,209.19,0.71]
[1758694889807,4.7790876,209.25,209.19,7.87106337]
[1758694890614,3.06081991,209.26,209.19,7.87106337]
[1758694890790,4.77868621,209.27,209.2,0.71]
[1758694891107,26.0,209.31,209.2,0.71]
[1758694891108,38.62438403,209.31,209.22,2.38081991]
[1758694891297,2.38081991,209.3,209.23,0.71]
[1758694891496,7.15865077,209.3,209.23,0.71]
[1758694893386,19.10322793,209.3,209.23,0.71]
[1758694893584,19.10322793,209.3,209.19,0.71]
[1758694893585,2.38081991,209.26,209.19,0.71]
[1758694893784,3.06081991,209.26,209.19,0.71]
[1758694894089,2.38081991,209.24,209.16,14.30559401]
[1758694894310,0.68,209.23,209.16,13.59559401]
[1758694894510,2.38081991,209.24,209.18,13.59559401]
[1758694894904,3.06081991,209.24,209.18,13.59559401]
[1758694895398,2.38081991,209.24,209.19,0.71]
[1758694895719,3.06081991,209.28,209.21,13.59559401]
[1758694895902,4.77853991,209.27,209.21,14.30559401]
[1758694896798,16.72482939,209.27,209.21,14.30559401]
[1758694897425,4.77853991,209.27,209.21,4.77976773]
[1758694897593,4.77853991,209.27,209.22,0.71]
[1758694897794,4.77853991,209.27,209.23,0.71]
[1758694898722,4.77828746,209.28,209.23,0.71]
[1758694898920,17.40400611,209.28,209.2,20.75650892]
[1758694899120,17.40400611,209.28,209.21,0.71]
[1758694899618,5.45828746,209.28,209.21,0.71]
[1758694900716,5.45828746,209.28,209.21,5.48979033]
[1758694900916,4.77828746,209.28,209.22,0.71]
[1758694902609,7.15910737,209.28,209.22,0.71]
[1758694902920,7.83910737,209.28,209.22,0.71]
[1758694903727,2.38081991,209.26,209.2,0.71]
[1758694903906,4.77897252,209.25,209.2,0.71]
[1758694904305,0.68,209.24,209.19,13.59559401]
[1758694904524,0.68,209.24,209.19,14.30559401]
[1758694904717,16.72640382,209.25,209.2,0.71]
[1758694904920,17.40640382,209.25,209.19,13.59559401]
[1758694905102,17.40640382,209.25,209.19,26.0]
[1758694905430,0.68,209.24,209.19,26.0]
[1758694905731,0.68,209.23,209.19,26.0]
[1758694905912,5.45965777,209.22,209.19,26.0]
[1758694906104,0.68,209.22,209.19,26.0]
[1758694906305,4.77944791,209.23,209.19,26.0]
[1758694906805,5.45944791,209.23,209.19,26.0]
[1758694907605,5.45944791,209.23,209.18,13.59559401]
[1758694907809,5.45944791,209.23,209.18,14.30559401]
[1758694908220,0.68,209.22,209.18,13.59559401]
[1758694909015,0.68,209.22,209.16,0.71]
[1758694910005,0.68,209.24,209.16,7.8718407]
[1758694910206,3.06081991,209.24,209.17,0.71]
[1758694910405,2.38081991,209.26,209.18,15.97641392]
[1758694910628,0.66,209.27,209.2,13.59559401]
[1758694910629,7.81956188,209.27,209.2,13.59559401]
[1758694910839,7.81956188,209.27,209.21,0.7]
[1758694911729,19.76585136,209.27,209.21,0.7]
[1758694911909,19.76585136,209.27,209.2,13.59559401]
[1758694912108,19.76585136,209.27,209.19,0.7]
[1758694912109,19.10585136,209.27,209.21,0.7]
[1758694912813,0.66,209.26,209.19,13.59559401]
[1758694913022,0.66,209.26,209.19,14.29559401]
[1758694914114,4.77897252,209.25,209.19,45.07583427]
[1758694914841,2.38081991,209.27,209.2,0.7]
[1758694915727,3.04081991,209.27,209.2,0.7]
[1758694915925,4.77828746,209.28,209.22,13.59559401]
[1758694916137,4.77828746,209.28,209.23,0.7]
[1758694916330,4.77828746,209.28,209.24,0.7]
[1758694916642,4.77828746,209.28,209.25,0.7]
[1758694916833,4.77828746,209.28,209.23,0.7]
[1758694917044,4.77828746,209.28,209.24,0.7]
[1758694917344,4.77805915,209.29,209.24,0.7]
[1758694917546,4.77786011,209.3,209.25,0.7]
[1758694917749,4.77786011,209.3,209.26,0.7]
[1758694917952,5.43786011,209.3,209.24,14.29559401]
[1758694920548,4.77786011,209.3,209.24,13.59559401]
[1758694920723,4.77786011,209.3,209.25,0.7]
[1758694921046,4.77786011,209.3,209.26,0.7]
[1758694921243,5.43786011,209.3,209.26,0.7]
[1758694921624,5.43786011,209.3,209.23,13.59559401]
[1758694921625,3.04081991,209.29,209.23,13.59559401]
[1758694921952,2.38081991,209.26,209.2,13.59559401]
[1758694922159,0.66,209.25,209.2,13.59559401]
[1758694922324,2.38081991,209.26,209.2,13.59559401]
[1758694922525,0.66,209.25,209.2,13.59559401]
[1758694922850,0.66,209.24,209.18,0.7]
[1758694923057,2.38081991,209.23,209.18,0.7]
[1758694923442,3.04081991,209.23,209.18,0.7]
[1758694923645,3.04081991,209.23,209.15,13.59559401]
[1758694923847,19.11042173,209.21,209.14,0.7]
[1758694924154,0.66,209.2,209.14,0.7]
[1758694924528,0.66,209.2,209.12,39.59559401]
[1758694924728,0.66,209.2,209.13,0.7]
[1758694925423,0.66,209.2,209.12,26.0]
[1758694925629,3.04081991,209.19,209.11,13.59559401]
[1758694925844,19.11362097,209.17,209.1,3.18081991]
[1758694926254,19.11362097,209.17,209.11,0.7]
[1758694926442,3.19598256,209.22,209.16,13.59559401]
[1758694926637,5.43968096,209.22,209.16,13.59559401]
[1758694926827,5.43968096,209.22,209.16,14.29559401]
[1758694927649,16.7288254,209.22,209.16,13.59559401]
[1758694927832,0.66,209.21,209.15,13.59559401]
[1758694928563,3.04081991,209.21,209.15,13.59559401]
[1758694928971,0.66,209.2,209.14,0.7]
[1758694929962,4.78034322,209.19,209.14,0.7]
[1758694930164,0.66,209.18,209.14,0.7]
[1758694930355,0.66,209.18,209.12,13.59559401]
[1758694930661,0.66,209.18,209.12,14.29559401]
[1758694931338,4.7808003,209.17,209.12,14.29559401]
[1758694931542,4.7808003,209.17,209.13,0.7]
[1758694931743,5.4408003,209.17,209.13,0.7]
[1758694932765,4.7808003,209.17,209.13,0.7]
[1758694932964,5.4408003,209.17,209.13,0.7]
[1758694933666,4.7808003,209.17,209.13,0.7]
[1758694934048,4.78058726,209.18,209.14,0.68]
[1758694934655,3.04081991,209.22,209.15,0.68]
[1758694934857,0.66,209.22,209.15,0.68]
[1758694935061,0.66,209.22,209.16,15.97641392]
[1758694935269,0.66,209.22,209.17,0.68]
[1758694935565,5.43975439,209.22,209.17,0.68]
[1758694935770,0.66,209.21,209.15,13.59559401]
[1758694935966,4.77975439,209.22,209.18,13.59559401]
[1758694936174,5.43975439,209.22,209.17,0.68]
[1758694937465,0.66,209.21,209.17,0.68]
[1758694938473,0.66,209.21,209.17,13.59559401]
[1758694938769,0.66,209.21,209.17,14.27559401]
[1758694938970,0.66,209.2,209.16,13.59559401]
[1758694939281,0.66,209.19,209.13,3.06081991]
[1758694939446,4.78000059,209.21,209.12,26.0]
[1758694939447,0.66,209.18,209.12,26.0]
[1758694940071,0.66,209.18,209.12,13.59559401]
[1758694940579,0.66,209.18,209.11,26.68]
[1758694940580,0.68,209.17,209.1,0.1]
[1758694940745,4.78102887,209.16,209.1,13.69559401]
[1758694940951,5.46102887,209.16,209.1,13.69559401]
[1758694941552,5.46102887,209.16,209.1,0.79]
[1758694943684,2.38081991,209.11,209.1,0.1]
[1758694944131,3.06081991,209.11,209.1,0.1]
[1758694944612,2.20562568,209.11,209.1,0.1]
[1758694944979,1.52562568,209.13,209.1,0.1]
[1758694945485,2.20562568,209.13,209.1,0.1]
[1758694945909,4.78194338,209.12,209.1,0.1]
[1758694946503,4.78165968,209.14,209.1,0.79]
[1758694946697,4.78165968,209.14,209.1,0.1]
[1758694946877,0.68,209.13,209.1,0.1]
[1758694947475,2.20562568,209.13,209.1,0.1]
[1758694947905,4.78162916,209.14,209.1,0.79]
[1758694948206,6.3059689,209.19,209.11,0.69]
[1758694948408,6.9859689,209.19,209.11,0.69]
[1758694948612,18.93682697,209.19,209.11,0.69]
[1758694948791,17.41120129,209.19,209.11,0.69]
[1758694949107,1.52562568,209.18,209.11,0.69]
[1758694949310,2.20562568,209.18,209.11,0.69]
[1758694949819,4.7808003,209.17,209.11,0.69]
[1758694950519,4.78047994,209.19,209.11,5.47212724]
[1758694950683,6.98610562,209.19,209.11,5.47212724]
[1758694951600,17.41133801,209.19,209.11,0.69]
[1758694951814,6.98610562,209.19,209.12,0.69]
[1758694952012,6.98610562,209.19,209.12,5.47186748]
[1758694952308,1.52562568,209.15,209.1,0.1]
[1758694952693,2.20562568,209.15,209.1,0.1]
[1758694953411,0.68,209.14,209.1,0.1]
[1758694953597,0.68,209.13,209.1,0.1]
[1758694953809,5.46178212,209.13,209.1,0.1]
[1758694954133,4.78178212,209.13,209.1,0.1]
[1758694954707,3.19321306,209.19,209.11,0.69]
[1758694954906,0.68,209.17,209.11,0.69]
[1758694955222,5.46034322,209.19,209.11,2.21562568]
[1758694955419,5.46034322,209.19,209.12,0.69]
[1758694955928,5.46034322,209.19,209.12,5.47180359]
[1758694956634,5.46034322,209.19,209.13,0.69]
[1758694959941,17.41120129,209.19,209.13,0.69]
[1758694961139,5.46034322,209.19,209.13,0.69]
[1758694961524,5.46034322,209.19,209.11,4.78207124]
[1758694961525,17.41120129,209.19,209.11,0.69]
[1758694961940,17.41120129,209.19,209.12,13.59559401]
[1758694962128,18.25682697,209.19,209.12,13.59559401]
[1758694962327,0.68,209.18,209.12,13.59559401]
[1758694962947,0.68,209.17,209.12,13.59559401]
[1758694963138,0.68,209.16,209.1,0.1]
[1758694963317,6.30688315,209.15,209.1,0.1]
[1758694963522,0.68,209.14,209.1,0.1]
[1758694963851,0.68,209.14,209.1,0.79]
[1758694964022,0.68,209.14,209.1,0.1]
[1758694964655,0.68,209.13,209.1,0.1]
[1758694965347,5.46125747,209.15,209.1,0.1]
[1758694965548,0.68,209.14,209.1,0.1]
[1758694965758,0.68,209.13,209.1,0.1]
[1758694966548,0.68,209.16,209.11,0.69]
[1758694966748,0.68,209.15,209.1,0.1]
[1758694967256,0.68,209.15,209.1,0.79]
[1758694967462,4.78148608,209.14,209.1,0.79]
[1758694968455,5.46128065,209.15,209.1,0.79]
[1758694968969,0.68,209.15,209.1,4.88229949]
[1758694969160,5.46088131,209.17,209.11,0.69]
[1758694969973,5.46088131,209.17,209.11,5.47212535]
[1758694970263,0.68,209.16,209.11,0.69]
[1758694970663,0.71,209.15,209.1,4.88234747]
[1758694970872,0.71,209.15,209.1,5.55234747]
[1758694971667,0.71,209.15,209.11,0.67]
[1758694972562,5.49127074,209.15,209.11,0.67]
[1758694974149,5.49127074,209.15,209.1,6.40797315]
[1758694974354,5.49127074,209.15,209.1,7.07797315]
[1758694974975,5.49127074,209.15,209.11,0.67]
[1758694975581,16.67549013,209.19,209.12,0.67]
[1758694975582,0.71,209.17,209.12,0.67]
[1758694975764,0.71,209.16,209.12,2.19562568]
[1758694975965,0.71,209.18,209.13,0.67]
[1758694976273,5.49028017,209.2,209.14,0.67]
[1758694976650,5.49028017,209.2,209.14,2.19562568]
[1758694977052,0.71,209.24,209.18,1.52562568]
[1758694977264,0.71,209.24,209.18,2.19562568]
[1758694977454,4.77945385,209.23,209.18,6.97618162]
[1758694977754,0.71,209.24,209.19,0.67]
[1758694977958,5.48922606,209.24,209.19,0.67]
[1758694978878,3.20621467,209.26,209.2,2.19562568]
[1758694979069,5.48876587,209.26,209.2,0.67]
[1758694979265,5.48876587,209.26,209.21,1.52562568]
[1758694979470,4.77876587,209.26,209.21,2.19562568]
[1758694979654,0.71,209.25,209.21,2.19562568]
[1758694980180,0.71,209.25,209.21,1.52562568]
[1758694981477,4.77965777,209.22,209.15,13.59559401]
[1758694981661,0.71,209.21,209.15,13.59559401]
[1758694981976,0.71,209.21,209.15,14.26559401]
[1758694983455,5.49011472,209.2,209.14,13.59559401]
[1758694983657,5.49011472,209.2,209.12,1.52562568]
[1758694983658,2.23562568,209.19,209.12,13.59559401]
[1758694983858,1.52562568,209.17,209.1,0.1]
[1758694984087,0.71,209.16,209.1,0.1]
[1758694984583,1.52562568,209.13,209.1,0.1]
[1758694984777,0.71,209.12,209.1,0.1]
[1758694985360,4.78194338,209.12,209.1,0.1]
[1758694985561,0.71,209.11,209.1,0.1]
[1758694986378,5.49217206,209.11,209.1,0.1]
[1758694987591,7.01779774,209.11,209.1,0.1]
[1758694989404,18.97322789,209.11,208.99,15.12121969]
[1758694989585,1.52562568,209.07,208.99,15.12121969]
[1758694989774,0.71,209.1,209.03,1.52562568]
[1758694989974,4.78217206,209.11,209.03,1.52562568]
[1758694989975,6.30779774,209.11,209.04,0.67]
[1758694990197,0.71,209.1,209.04,0.67]
[1758694990579,2.23562568,209.1,209.04,0.67]
[1758694990913,0.71,209.1,209.04,0.67]
[1758694991078,5.49261022,209.1,209.04,0.67]
[1758694991486,0.71,209.14,209.05,13.59559401]
[1758694991687,1.52562568,209.13,209.06,2.19562568]
[1758694991891,1.52562568,209.11,209.04,1.52562568]
[1758694992080,1.52562568,209.11,209.04,2.19562568]
[1758694992979,4.78240076,209.1,209.04,0.67]
[1758694993180,7.01802644,209.1,209.04,0.67]
[1758694993380,5.49240076,209.1,209.04,2.19562568]
[1758694993983,5.49240076,209.1,209.04,6.97930663]
[1758694994385,5.49240076,209.1,209.04,2.19562568]
[1758694994913,0.71,209.1,209.04,6.97936164]
[1758694995096,4.78203262,209.12,209.06,1.52562568]
[1758694995295,2.23562568,209.15,209.07,2.19562568]
[1758694995488,4.78102876,209.17,209.1,1.52562568]
[1758694995690,4.78102876,209.17,209.11,0.67]
[1758694995901,4.78102876,209.17,209.11,2.19562568]
[1758694996102,6.30665444,209.17,209.11,0.67]
[1758694997007,1.52562568,209.14,209.06,26.0]
[1758694997212,16.73302952,209.17,209.05,0.67]
[1758694997213,1.52562568,209.11,209.05,0.67]
[1758694997390,2.23562568,209.11,209.05,0.67]
[1758694997712,4.78125747,209.15,209.05,0.67]
[1758694997713,0.71,209.13,209.06,1.52562568]
[1758694998007,2.23562568,209.13,209.06,1.52562568]
[1758694998183,1.52562568,209.12,209.05,6.97914957]
[1758694998584,1.52562568,209.1,209.02,27.52562568]
[1758694998802,1.52562568,209.1,209.03,26.0]
[1758694998803,2.23562568,209.1,209.03,26.0]
[1758694999112,4.78262948,209.09,209.03,0.67]
[1758695000194,5.49262948,209.09,209.03,0.67]
[1758695000803,5.49262948,209.09,209.03,2.19562568]
[1758695001107,4.78262948,209.09,209.03,1.52562568]
[1758695001306,2.18562568,209.12,209.04,14.26559401]
[1758695001513,0.66,209.11,209.04,15.79121969]
[1758695002597,4.78240076,209.1,209.05,0.67]
[1758695002792,2.18562568,209.14,209.06,2.19562568]
[1758695003114,2.18562568,209.14,209.07,2.19562568]
[1758695003900,2.18562568,209.14,209.07,0.67]
[1758695004105,4.78125747,209.15,209.08,15.12121969]
[1758695004415,4.78125747,209.15,209.09,2.19562568]
[1758695004812,4.78125747,209.15,209.09,6.97824302]
[1758695005116,6.96652757,209.17,209.1,2.19562568]
[1758695005317,5.44090189,209.17,209.11,2.19562568]
[1758695005826,0.66,209.17,209.11,2.19562568]
[1758695005998,6.30606196,209.19,209.12,2.19562568]
[1758695006816,4.78043628,209.19,209.12,7.83354478]
[1758695007816,4.77984393,209.22,209.14,2.38165354]
[1758695008122,2.38165354,209.2,209.13,14.26559401]
[1758695008322,0.66,209.19,209.13,14.26559401]
[1758695008823,17.38898837,209.22,209.14,0.67]
[1758695008989,7.82149747,209.22,209.14,3.05165354]
[1758695009192,7.82149747,209.22,209.15,0.67]
[1758695009620,5.43984393,209.22,209.15,0.67]
[1758695009914,7.82149747,209.22,209.15,0.67]
[1758695010496,5.43984393,209.22,209.15,0.67]
[1758695011516,17.38898837,209.22,209.15,0.67]
[1758695012900,17.38898837,209.22,209.16,13.59559401]
[1758695014120,4.78011472,209.2,209.16,13.59559401]
[1758695014620,4.78011472,209.2,209.16,14.26559401]
[1758695015021,4.78011472,209.2,209.16,13.59559401]
[1758695015198,4.78011472,209.2,209.17,0.67]
[1758695016423,4.77988623,209.21,209.16,13.59559401]
[1758695016621,5.43988623,209.21,209.16,14.26559401]
[1758695016921,5.43988623,209.21,209.16,13.59559401]
[1758695017114,5.43988623,209.21,209.17,0.67]
[1758695018025,5.43988623,209.21,209.16,13.59559401]
[1758695018209,5.43988623,209.21,209.16,14.26559401]
[1758695018413,0.66,209.2,209.08,26.32691063]
[1758695018596,2.38165354,209.18,209.12,13.59559401]
[1758695018802,2.38165354,209.14,209.07,13.59559401]
[1758695019017,0.66,209.13,209.07,13.59559401]
[1758695019215,3.04165354,209.12,209.07,13.59559401]
[1758695019416,0.66,209.11,209.05,0.67]
[1758695019809,0.66,209.11,209.06,13.59559401]
[1758695020011,0.66,209.1,209.06,13.59559401]
[1758695020532,4.78262948,209.09,209.06,13.59559401]
[1758695021735,0.66,209.1,209.06,0.67]
[1758695022043,3.04165354,209.12,209.06,0.67]
[1758695022542,4.78218102,209.11,209.06,0.67]
[1758695022745,0.66,209.1,209.06,0.67]
[1758695023124,4.78218102,209.11,209.04,0.67]
[1758695023327,5.44218102,209.11,209.04,0.67]
[1758695024127,4.78218102,209.11,209.04,5.45377279]
[1758695024336,3.04165354,209.12,209.06,13.59559401]
[1758695024528,4.78193259,209.13,209.06,13.59559401]
[1758695024749,0.66,209.14,209.08,13.59559401]
[1758695025750,2.38165354,209.15,209.07,3.05165354]
[1758695025751,7.16292552,209.15,209.1,13.59559401]
[1758695025928,7.82292552,209.15,209.1,14.26559401]
[1758695026345,11.9517124,209.18,209.08,4.78265177]
[1758695026346,4.78095272,209.17,209.12,13.59559401]
[1758695026643,4.78057504,209.18,209.13,0.67]
[1758695026849,5.44057504,209.18,209.13,0.67]
[1758695028038,0.66,209.17,209.12,13.59559401]
[1758695028239,3.04165354,209.16,209.1,13.59559401]
[1758695028437,2.38165354,209.16,209.12,13.59559401]
[1758695028747,5.44057504,209.18,209.12,13.59559401]
[1758695028748,2.38165354,209.17,209.12,13.59559401]
[1758695029047,0.66,209.15,209.12,13.59559401]
[1758695029447,4.78110888,209.16,209.12,13.59559401]
[1758695029656,5.44110888,209.16,209.12,13.59559401]
[1758695030552,4.78071007,209.18,209.13,0.68]
[1758695030858,4.78071007,209.18,209.14,0.68]
[1758695031347,2.38165354,209.19,209.14,0.68]
[1758695031728,0.72,209.18,209.12,19.05744113]
[1758695032318,19.11290475,209.19,209.12,13.59559401]
[1758695032539,2.38165354,209.17,209.1,13.59559401]
[1758695032740,2.38165354,209.15,209.1,26.0]
[1758695032936,0.72,209.14,209.08,13.59559401]
[1758695033133,0.72,209.13,209.08,13.59559401]
[1758695033347,0.72,209.12,209.08,13.59559401]
[1758695033542,4.78178942,209.13,209.1,13.59559401]
[1758695034637,4.78148943,209.14,209.1,13.59559401]
[1758695034839,2.38165354,209.17,209.11,0.68]
[1758695035038,3.10165354,209.17,209.11,0.68]
[1758695035745,7.88247827,209.17,209.11,0.68]
[1758695036047,7.88247827,209.17,209.1,13.59559401]
[1758695036358,7.88247827,209.17,209.11,0.68]
[1758695038461,7.88247827,209.17,209.12,13.59559401]
[1758695038962,7.88176826,209.2,209.14,13.59559401]
[1758695039254,5.50011472,209.2,209.14,15.97724755]
[1758695039649,5.50011472,209.2,209.14,16.65724755]
[1758695040242,5.50011472,209.2,209.14,21.43872285]
[1758695040457,5.50011472,209.2,209.14,14.27559401]
[1758695041175,0.72,209.19,209.11,0.68]
[1758695041352,0.72,209.19,209.12,13.59559401]
[1758695041549,0.72,209.18,209.12,13.59559401]
[1758695041862,2.38165354,209.16,209.11,13.59559401]
[1758695042057,0.72,209.15,209.11,13.59559401]
[1758695042271,4.7808003,209.17,209.11,13.59559401]
[1758695042457,4.7808003,209.17,209.12,0.68]
[1758695042657,5.5008003,209.17,209.12,0.68]
[1758695042888,0.72,209.17,209.12,0.68]
[1758695043182,0.72,209.17,209.13,0.68]
[1758695043379,4.78061815,209.18,209.11,13.59559401]
[1758695043583,4.78061815,209.18,209.11,21.43938815]
[1758695045462,4.78061815,209.18,209.12,0.68]
[1758695045672,3.91830428,209.22,209.15,2.38165354]
[1758695045849,0.72,209.22,209.15,3.06165354]
[1758695046662,7.97990899,209.24,209.17,2.38165354]
[1758695046863,3.10165354,209.26,209.18,0.68]
[1758695047369,4.77897252,209.25,209.18,0.68]
[1758695048465,4.77897252,209.25,209.19,2.38165354]
[1758695048987,4.77897252,209.25,209.19,13.59559401]
[1758695049192,4.77897252,209.25,209.19,15.97724755]
[1758695049786,17.44640382,209.25,209.19,15.97724755]
[1758695050093,17.44640382,209.25,209.19,13.59559401]
[1758695052717,0.72,209.24,209.14,37.95235326]
[1758695052863,26.0,209.22,209.08,0.68]
[1758695053066,2.38165354,209.18,209.09,2.38165354]
[1758695053367,0.72,209.17,209.08,0.68]
[1758695053570,0.72,209.17,209.09,13.59559401]
[1758695053793,0.68,209.16,209.09,13.59559401]
[1758695053999,0.68,209.15,209.09,13.59559401]
[1758695054873,4.78148608,209.14,209.09,13.59559401]
[1758695055077,5.46148608,209.14,209.09,13.59559401]
[1758695055693,5.46148608,209.14,209.09,14.26559401]
[1758695057508,3.06165354,209.13,209.06,0.67]
[1758695057685,3.06165354,209.13,209.07,13.59559401]
[1758695058007,3.06165354,209.13,209.06,13.59559401]
[1758695059093,4.78194338,209.12,209.06,14.26559401]
[1758695060885,2.38165354,209.15,209.07,3.10165354]
[1758695061088,2.38165354,209.15,209.08,0.72]
[1758695061293,4.78125747,209.15,209.09,13.59559401]
[1758695061492,4.78125747,209.15,209.1,0.72]
[1758695061892,5.50125747,209.15,209.1,0.72]
[1758695062092,5.50125747,209.15,209.08,13.59559401]
[1758695062378,5.50125747,209.15,209.11,0.72]
[1758695062583,0.72,209.14,209.08,14.31559401]
[1758695063510,4.78171472,209.13,209.08,14.31559401]
[1758695063808,4.78171472,209.13,209.09,0.72]
[1758695065803,3.10165354,209.14,209.08,13.59559401]
[1758695065804,2.38165354,209.14,209.1,0.72]
[1758695066010,7.16315021,209.14,209.1,0.72]
[1758695066501,7.16283498,209.16,209.11,0.72]
[1758695066703,7.16283498,209.16,209.12,0.72]
[1758695066704,7.02592566,209.16,209.12,0.72]
[1758695067604,6.30592566,209.16,209.12,0.72]
[1758695068405,7.02592566,209.16,209.12,0.72]
[1758695069501,7.02592566,209.16,209.1,4.78235014]
[1758695069502,0.72,209.23,209.16,13.59559401]
[1758695069813,2.24474422,209.23,209.17,0.72]
[1758695070521,1.52474422,209.19,209.11,15.84033823]
[1758695070695,0.72,209.18,209.12,13.59559401]
[1758695070891,3.91763659,209.25,209.17,1.52474422]
[1758695071194,4.77852214,209.27,209.2,18.37554107]
[1758695071513,5.49852214,209.27,209.2,19.09554107]
[1758695071811,4.77852214,209.27,209.2,18.37554107]
[1758695071997,1.52474422,209.28,209.22,13.59559401]
[1758695072394,6.30306692,209.28,209.22,14.31559401]
[1758695072918,4.7783227,209.28,209.22,14.31559401]
[1758695073114,2.49563043,209.31,209.22,14.31559401]
[1758695073115,2.49563043,209.31,209.25,26.0]
[1758695073418,1.52474422,209.33,209.23,14.31559401]
[1758695073723,0.72,209.3,209.23,14.31559401]
[1758695073909,0.72,209.3,209.23,15.84033823]
[1758695074501,4.77805915,209.29,209.23,15.12033823]
[1758695074814,1.52474422,209.27,209.22,26.0]
[1758695075018,2.24474422,209.27,209.22,26.0]
[1758695075241,0.72,209.26,209.19,13.59559401]
[1758695076306,4.77897252,209.25,209.19,14.31559401]
[1758695076714,6.30371674,209.25,209.19,14.31559401]
[1758695076892,1.52474422,209.25,209.2,0.72]
[1758695077092,0.72,209.26,209.19,19.90058731]
[1758695077297,5.49875119,209.26,209.21,0.72]
[1758695077499,4.77875119,209.26,209.22,0.72]
[1758695078318,4.77875119,209.26,209.2,13.59559401]
[1758695078319,5.49875119,209.26,209.2,13.59559401]
[1758695079239,5.49875119,209.26,209.2,4.7801044]
[1758695079413,5.49875119,209.26,209.2,18.37569841]
[1758695079832,5.49875119,209.26,209.2,19.09569841]
[1758695081638,1.52474422,209.27,209.21,13.59559401]
[1758695081812,1.52474422,209.27,209.21,15.84033823]